bitfinex-derivatives/quotes_SOLF0:USTF0_20260202
["timestamp","ask_amount","ask_price","bid_price","bid_amount"]
[1769999552770,144.98288674,102.07,101.97,377.93739664]
[1769999552771,14.70360434,102.04,101.97,377.93739664]
[1769999553066,14.70360434,102.04,101.97,515.37639664]
[1769999553361,14.70360434,102.04,101.97,377.93739664]
[1769999553560,23.53310434,102.04,101.97,386.77259664]
[1769999553962,14.70360434,102.04,101.97,377.93739664]
[1769999554164,14.70360434,102.04,101.98,8.8344]
[1769999555268,14.70367853,102.07,101.99,8.8334]
[1769999555768,23.53130752,102.06,101.99,8.8334]
[1769999555972,14.70350752,102.06,101.99,274.822]
[1769999556458,14.70350752,102.06,101.99,8.833]
[1769999557968,14.70333996,102.05,101.99,8.833]
[1769999558765,373.14,102.06,102.01,8.8318]
[1769999559370,373.14,102.06,101.99,137.4072]
[1769999560269,373.14,102.06,102.01,137.3826]
[1769999560575,23.52748669,102.1,102.01,137.3826]
[1769999560971,374.16,102.11,102.03,137.3574]
[1769999561170,23.52578669,102.12,102.03,137.3574]
[1769999561365,397.76578669,102.12,102.03,137.3574]
[1769999561571,388.94258669,102.12,102.04,145.01418674]
[1769999561965,388.94258669,102.12,102.07,8.8266]
[1769999561966,374.24,102.12,102.07,8.8266]
[1769999562164,23.5102571,102.14,102.05,137.3311]
[1769999562571,14.6888571,102.14,102.07,8.8266]
[1769999562869,14.6888571,102.14,102.06,144.98838674]
[1769999563568,374.66,102.16,102.08,137.2912]
[1769999563775,14.6723551,102.16,102.08,7.67118674]
[1769999563969,14.6723551,102.15,102.06,7.67118674]
[1769999564166,23.4931551,102.14,102.05,8.8276]
[1769999564475,14.6723551,102.14,102.05,137.3312]
[1769999564873,23.4931551,102.14,102.05,137.3312]
[1769999565074,14.6723551,102.13,102.04,145.01578674]
[1769999565479,14.6723551,102.13,102.06,8.8273]
[1769999566878,14.6723551,102.13,102.07,8.8265]
[1769999567974,14.6723551,102.13,102.05,8.828]
[1769999568282,14.68010544,102.12,102.05,8.828]
[1769999568676,23.50260544,102.12,102.05,8.828]
[1769999569187,14.68010544,102.1,102.03,8.8296]
[1769999569383,14.68010544,102.1,102.0,169.25535639]
[1769999569575,14.68010544,102.1,102.02,137.3716]
[1769999569877,14.68010544,102.1,102.03,8.83]
[1769999570279,14.69033028,102.12,102.04,7.67118674]
[1769999570882,14.69033028,102.11,102.03,8.8294]
[1769999571588,14.67688664,102.12,102.03,9.807]
[1769999571780,14.67688664,102.12,102.04,7.67118674]
[1769999571977,23.49998664,102.12,102.05,8.8283]
[1769999572179,14.67688664,102.12,102.05,8.8283]
[1769999572582,375.26,102.13,102.06,7.67118674]
[1769999572781,14.67688664,102.15,102.07,137.3004]
[1769999572982,14.67688664,102.15,102.06,144.98578674]
[1769999573282,14.67688664,102.14,102.06,8.8267]
[1769999573483,14.67688664,102.13,102.04,17.47818674]
[1769999573886,23.49615173,102.12,102.05,8.8283]
[1769999574387,23.49615173,102.12,102.03,147.165]
[1769999575187,23.49615173,102.12,102.05,8.8284]
[1769999576486,23.49860626,102.11,102.02,145.03198674]
[1769999576780,14.67520626,102.1,102.02,31.86735639]
[1769999576981,23.50020626,102.09,102.02,24.19616965]
[1769999577383,317.4,102.11,102.02,161.56446965]
[1769999577579,332.08495222,102.11,102.03,24.19616965]
[1769999577786,332.08495222,102.11,102.04,8.8293]
[1769999577986,332.08495222,102.11,102.03,161.55256965]
[1769999578184,332.08495222,102.11,102.04,24.19616965]
[1769999578385,317.4,102.11,102.05,24.19616965]
[1769999579282,23.50555222,102.15,102.06,161.51306965]
[1769999579487,14.68495222,102.14,102.06,161.51306965]
[1769999579694,14.68495222,102.14,102.06,24.19616965]
[1769999579889,14.66356789,102.13,102.06,33.02306965]
[1769999580083,14.66356789,102.13,102.06,8.8269]
[1769999580592,14.66356789,102.12,102.06,8.8269]
[1769999580891,14.66356789,102.11,102.04,24.19616965]
[1769999581091,389.80356789,102.11,102.03,24.19616965]
[1769999581286,14.66356789,102.1,102.03,24.19616965]
[1769999581488,14.65840326,102.09,102.02,161.56526965]
[1769999581790,14.65840326,102.09,102.03,137.3581]
[1769999581996,14.65840326,102.09,102.04,8.8292]
[1769999582192,375.14,102.11,102.04,137.3451]
[1769999582391,14.65840326,102.12,102.07,8.8267]
[1769999583692,14.65840326,102.12,102.08,8.8257]
[1769999584001,14.65565108,102.14,102.08,8.8257]
[1769999584298,14.65565108,102.14,102.09,8.8248]
[1769999584897,14.65565108,102.14,102.08,161.48496965]
[1769999585098,14.65565108,102.16,102.1,8.8239]
[1769999585793,14.65565108,102.16,102.08,8.8252]
[1769999586399,352.11565108,102.16,102.09,8.8248]
[1769999586598,14.64448631,102.15,102.09,8.8248]
[1769999587497,337.46,102.16,102.09,137.2756]
[1769999587697,337.46,102.16,102.09,144.94678674]
[1769999587899,352.10441316,102.16,102.09,144.94678674]
[1769999588095,352.10441316,102.16,102.1,8.8239]
[1769999589198,14.64441316,102.15,102.08,137.2891]
[1769999589395,14.64441316,102.15,102.07,137.3037]
[1769999589593,14.64441316,102.15,102.08,137.2899]
[1769999589992,14.64461835,102.17,102.09,137.2768]
[1769999590397,14.64461835,102.17,102.11,8.8231]
[1769999591002,14.64461835,102.17,102.09,8.8244]
[1769999591604,14.63582128,102.15,102.07,8.8261]
[1769999592304,14.63582128,102.14,102.07,8.8261]
[1769999592596,14.63582128,102.14,102.04,7.6714166]
[1769999592597,14.63582128,102.12,102.04,7.6714166]
[1769999592802,14.63582128,102.11,102.03,137.3583]
[1769999593102,14.63582128,102.11,102.02,137.3604]
[1769999593294,14.63582128,102.1,102.04,8.8292]
[1769999594497,14.63582128,102.1,102.05,8.8282]
[1769999594698,23.42938996,102.13,102.04,137.3405]
[1769999594899,14.60708996,102.13,102.05,137.3277]
[1769999595201,14.60708996,102.13,102.06,137.318]
[1769999595503,214.02708996,102.16,102.07,137.3002]
[1769999595700,14.62692481,102.15,102.07,146.1261]
[1769999595900,14.62692481,102.15,102.07,137.3002]
[1769999596100,14.62692481,102.15,102.08,137.2909]
[1769999596299,14.62692481,102.15,102.09,8.8248]
[1769999596902,14.62692481,102.15,102.1,8.824]
[1769999597305,14.62692481,102.18,102.1,137.2625]
[1769999597499,14.62692481,102.18,102.11,137.2496]
[1769999597695,14.62919637,102.2,102.11,137.2496]
[1769999598505,14.62919637,102.2,102.13,137.2224]
[1769999599205,14.62919637,102.2,102.14,8.8205]
[1769999599504,14.62919637,102.2,102.12,144.9059166]
[1769999599799,14.62919637,102.2,102.14,8.8205]
[1769999601908,14.62877578,102.23,102.15,137.1967]
[1769999602111,14.62877578,102.23,102.15,144.8681166]
[1769999602505,14.62877578,102.23,102.16,8.8188]
[1769999602705,14.62877578,102.23,102.15,144.8681166]
[1769999603202,14.62877578,102.22,102.14,137.2099]
[1769999603909,14.62877578,102.22,102.14,8.82]
[1769999604607,14.62866538,102.21,102.13,137.2231]
[1769999605106,14.62866538,102.21,102.12,137.2364]
[1769999606513,14.63780244,102.2,102.13,8.8212]
[1769999606903,14.63780244,102.19,102.13,8.8212]
[1769999607104,14.63780244,102.19,102.11,137.2504]
[1769999607105,14.63780244,102.16,102.07,137.2927]
[1769999607410,14.56465949,102.14,102.05,137.3308]
[1769999607604,14.56465949,102.12,102.02,145.0335166]
[1769999607805,14.56465949,102.11,102.02,145.0335166]
[1769999608408,23.38805949,102.11,102.02,137.3621]
[1769999608603,23.38805949,102.11,102.0,442.9784166]
[1769999608604,14.56465949,102.1,102.0,442.9784166]
[1769999608811,14.56465949,102.09,102.0,145.0584166]
[1769999609009,14.56465949,102.08,102.0,137.3986]
[1769999609213,14.56465949,102.08,102.02,137.371]
[1769999609513,14.56465949,102.08,102.0,145.0700166]
[1769999610309,14.60088669,102.11,102.02,137.371]
[1769999610613,14.60088669,102.11,102.04,137.3442]
[1769999611210,14.60088669,102.14,102.06,8.8273]
[1769999611715,14.60088669,102.14,102.07,8.8264]
[1769999613005,14.60088669,102.14,102.03,137.3572]
[1769999613006,14.62088089,102.13,102.03,137.3572]
[1769999613407,14.62088089,102.12,102.03,137.3572]
[1769999613809,14.62088089,102.12,102.04,137.3435]
[1769999614503,14.62088089,102.12,102.05,8.8282]
[1769999615514,14.62088089,102.12,102.03,8.8299]
[1769999616011,14.62088089,102.12,102.03,137.3572]
[1769999616606,23.44348089,102.12,102.04,8.829]
[1769999616815,14.62088089,102.12,102.04,137.3442]
[1769999617015,14.62088089,102.12,102.04,145.0156166]
[1769999617218,14.62088089,102.12,102.04,169.21178625]
[1769999617514,14.62088089,102.12,102.04,24.19616965]
[1769999617815,14.62088089,102.12,102.03,161.55336965]
[1769999618115,14.61258932,102.11,102.02,33.02676965]
[1769999618310,14.61258932,102.09,102.02,8.8306]
[1769999618913,14.61258932,102.09,102.0,33.02826965]
[1769999619112,14.61258932,102.09,102.0,8.8321]
[1769999619415,14.61258932,102.08,102.0,8.8321]
[1769999619613,14.61258932,102.08,101.98,170.45166965]
[1769999620011,14.61011225,102.07,101.99,137.4117]
[1769999620315,14.61011225,102.07,102.01,8.8316]
[1769999622414,14.61011225,102.07,101.99,170.44076965]
[1769999622617,14.61011225,102.07,101.99,146.2446]
[1769999624015,14.6169576,102.06,101.99,8.8329]
[1769999624411,14.6169576,102.04,101.95,24.19616965]
[1769999624612,14.6169576,102.04,101.9,430.2516]
[1769999624613,14.6169576,102.01,101.91,161.71506965]
[1769999624813,14.6169576,102.0,101.91,137.5189]
[1769999625011,14.6169576,101.99,101.91,8.8398]
[1769999625617,14.6169576,101.99,101.9,137.5223]
[1769999626318,14.6169576,101.99,101.91,8.8403]
[1769999626717,14.6169576,101.99,101.91,137.5136]
[1769999627120,22.2883742,101.99,101.89,137.535]
[1769999627319,14.6292128,101.97,101.9,8.8407]
[1769999627722,14.65018788,101.96,101.88,8.843]
[1769999627924,14.65018788,101.94,101.85,137.5902]
[1769999628123,14.65018788,101.94,101.86,137.5848]
[1769999628526,14.65018788,101.94,101.87,8.8437]
[1769999628920,23.49018788,101.92,101.82,145.3047166]
[1769999629223,14.65018788,101.91,101.83,8.8468]
[1769999629626,14.65018788,101.91,101.84,8.8464]
[1769999629921,14.65018788,101.91,101.84,146.4611]
[1769999630120,14.65018788,101.91,101.85,8.8455]
[1769999630423,14.65018788,101.91,101.82,145.3047166]
[1769999630628,14.65018788,101.91,101.84,8.8463]
[1769999631626,374.64,101.92,101.85,8.8454]
[1769999631827,389.28432974,101.92,101.85,8.8454]
[1769999632029,389.28432974,101.92,101.82,145.3047166]
[1769999632030,14.64432974,101.91,101.82,7.6714166]
[1769999632231,14.64432974,101.91,101.83,137.6276]
[1769999632623,14.64432974,101.91,101.84,146.4606]
[1769999632829,374.64,101.92,101.85,137.6002]
[1769999633030,374.64,101.92,101.84,145.2856166]
[1769999633529,389.29152094,101.92,101.84,145.2856166]
[1769999633833,14.65152094,101.91,101.82,145.3124166]
[1769999634130,14.65152094,101.91,101.83,146.4751]
[1769999634930,14.65152094,101.91,101.84,8.8464]
[1769999635833,14.65152094,101.91,101.82,146.4891]
[1769999636031,14.65297559,101.9,101.82,8.8481]
[1769999636428,14.65297559,101.9,101.82,146.4881]
[1769999637029,14.65297559,101.9,101.82,8.8481]
[1769999637635,14.65297559,101.9,101.82,146.4894]
[1769999637825,14.65297559,101.9,101.83,8.8472]
[1769999638129,14.65297559,101.9,101.83,146.4754]
[1769999638327,14.65297559,101.9,101.83,137.6282]
[1769999638532,375.54,101.91,101.84,8.8464]
[1769999638721,14.64976502,101.9,101.82,145.3127166]
[1769999638927,14.64976502,101.9,101.8,145.3284166]
[1769999640323,14.64976502,101.9,101.78,137.6846]
[1769999640324,14.62634171,101.87,101.78,137.6846]
[1769999640626,14.62634171,101.85,101.76,137.7132]
[1769999640831,14.62634171,101.83,101.75,619.09902328]
[1769999641035,14.62634171,101.83,101.75,610.24532328]
[1769999642233,14.62634171,101.83,101.76,8.8534]
[1769999643631,14.62634171,101.83,101.77,8.8526]
[1769999644031,383.9268,101.84,101.78,8.8517]
[1769999644032,375.08,101.84,101.78,8.8517]
[1769999644228,14.59166488,101.83,101.75,749.69027313]
[1769999644432,14.59166488,101.83,101.75,611.95447313]
[1769999644935,14.59166488,101.83,101.76,8.853]
[1769999645130,23.43696488,101.86,101.77,137.7089]
[1769999645531,14.59166488,101.86,101.77,137.7089]
[1769999645736,14.59166488,101.86,101.76,145.3900166]
[1769999645934,14.61425372,101.85,101.76,145.3900166]
[1769999646438,14.61425372,101.85,101.78,8.8517]
[1769999647241,23.46015372,101.85,101.78,8.8517]
[1769999647540,14.61425372,101.85,101.78,8.8517]
[1769999647838,23.46015372,101.85,101.78,8.8517]
[1769999648841,375.36,101.86,101.76,7.72022895]
[1769999648842,23.50826,101.84,101.76,7.72022895]
[1769999649342,14.66146,101.84,101.77,8.8525]
[1769999649735,390.02408094,101.86,101.78,137.6958]
[1769999649936,14.66408094,101.86,101.79,8.8506]
[1769999650238,14.66408094,101.86,101.76,145.44092895]
[1769999650541,14.66408094,101.84,101.77,8.852]
[1769999651136,14.66408094,101.84,101.75,759.49617313]
[1769999651137,14.66408094,101.83,101.75,620.80817313]
[1769999652242,14.66408094,101.83,101.76,8.8533]
[1769999652441,14.66408094,101.83,101.75,749.68957313]
[1769999653246,145.30852895,101.86,101.77,137.709]
[1769999653247,14.65452557,101.86,101.77,137.709]
[1769999653541,8.844,101.88,101.8,8.8501]
[1769999653842,23.50564495,101.88,101.8,8.8501]
[1769999654038,14.66164495,101.88,101.81,8.8492]
[1769999654243,14.66164495,101.88,101.8,145.38882895]
[1769999654943,14.66164495,101.86,101.77,137.7088]
[1769999655143,14.66164495,101.86,101.76,145.43322895]
[1769999655341,8.8469,101.84,101.77,8.8519]
[1769999655542,14.65256066,101.83,101.75,611.95447313]
[1769999655736,14.65256066,101.82,101.75,611.95447313]
[1769999655937,14.65256066,101.82,101.75,1.70914985]
[1769999656138,23.50116066,101.82,101.75,1.70914985]
[1769999656939,14.65256066,101.82,101.75,9.4293788]
[1769999657145,14.65256066,101.82,101.75,147.1645788]
[1769999657542,14.65256066,101.82,101.75,1.70914985]
[1769999658645,14.65256066,101.82,101.75,10.56334985]
[1769999660047,14.65256066,101.82,101.76,8.8534]
[1769999660547,14.65256066,101.82,101.75,1.70914985]
[1769999661243,14.69556266,101.81,101.74,305.14]
[1769999661638,14.69556266,101.81,101.73,8.8557]
[1769999661842,14.62841703,101.79,101.73,8.8557]
[1769999662047,14.62841703,101.79,101.71,306.58]
[1769999662048,14.62841703,101.79,101.71,444.3693]
[1769999662240,14.62841703,101.79,101.71,446.07907964]
[1769999662838,14.62841703,101.79,101.73,8.8561]
[1769999664252,14.62841703,101.79,101.71,446.07907964]
[1769999664453,14.62841703,101.79,101.71,139.49907964]
[1769999665450,14.62841703,101.79,101.72,8.857]
[1769999665646,8.8502,101.8,101.71,1.70977964]
[1769999665647,14.61614569,101.78,101.71,1.70977964]
[1769999666046,14.61614569,101.77,101.67,518.79736241]
[1769999666450,14.61614569,101.77,101.67,520.50781435]
[1769999666650,23.46894569,101.77,101.69,8.8596]
[1769999666851,14.61614569,101.77,101.69,137.8175]
[1769999667050,14.61614569,101.77,101.68,137.83]
[1769999667550,14.61614569,101.79,101.69,145.53212895]
[1769999668255,14.61614569,101.79,101.71,145.50562895]
[1769999669257,14.62563276,101.78,101.71,7.72022895]
[1769999669755,14.62563276,101.78,101.71,16.57782895]
[1769999669951,14.62563276,101.78,101.71,7.72022895]
[1769999671352,23.47773276,101.78,101.71,7.72022895]
[1769999671553,14.61475492,101.77,101.7,8.8581]
[1769999671948,137.6836,101.79,101.68,445.09]
[1769999671949,14.61313801,101.76,101.68,316.1198]
[1769999672256,14.61313801,101.76,101.68,8.8598]
[1769999672456,14.61313801,101.76,101.67,382.66371435]
[1769999672457,14.61313801,101.76,101.69,8.8595]
[1769999672758,14.61313801,101.76,101.67,520.50641435]
[1769999672950,14.61313801,101.76,101.68,137.8308]
[1769999673150,14.61313801,101.76,101.69,8.8593]
[1769999673350,14.61313801,101.76,101.67,382.66371435]
[1769999673553,14.60844494,101.75,101.67,1.71045194]
[1769999673752,14.60844494,101.74,101.67,1.71045194]
[1769999674052,14.60844494,101.73,101.67,1.71045194]
[1769999674358,14.60844494,101.73,101.63,145.60772895]
[1769999674656,14.60844494,101.73,101.64,1.71095651]
[1769999675049,14.60844494,101.71,101.64,1.71095651]
[1769999675250,14.60844494,101.7,101.64,1.71095651]
[1769999675452,14.60844494,101.7,101.61,7.72022895]
[1769999675758,14.58478949,101.69,101.61,8.866]
[1769999675952,372.42,101.7,101.62,137.9116]
[1769999676257,14.58478949,101.7,101.63,8.8646]
[1769999676458,372.4,101.72,101.63,145.61892895]
[1769999676655,386.98478949,101.72,101.63,145.61892895]
[1769999676858,14.58478949,101.71,101.63,145.61892895]
[1769999677462,372.4,101.72,101.65,8.8628]
[1769999677760,372.4,101.72,101.65,16.58302895]
[1769999678260,14.56411318,101.74,101.65,16.58302895]
[1769999678558,14.56432681,101.75,101.67,7.72022895]
[1769999678758,14.56432681,101.74,101.65,7.72022895]
[1769999680162,14.56432681,101.74,101.66,137.8581]
[1769999680362,14.56432681,101.74,101.67,7.72022895]
[1769999680657,14.5234062,101.78,101.67,137.8375]
[1769999680861,14.5234062,101.76,101.68,7.72022895]
[1769999681160,14.5234062,101.76,101.65,444.8712]
[1769999681161,14.5234062,101.73,101.65,7.72022895]
[1769999681358,14.5234062,101.72,101.65,7.72022895]
[1769999681568,14.5234062,101.72,101.63,7.72022895]
[1769999681758,14.4764596,101.71,101.63,16.58472895]
[1769999682362,14.4764596,101.71,101.64,8.8638]
[1769999682563,14.4764596,101.71,101.63,7.72022895]
[1769999682762,14.4764596,101.7,101.61,7.72022895]
[1769999682953,14.4764596,101.69,101.61,7.72022895]
[1769999683763,14.4764596,101.69,101.62,8.8653]
[1769999684363,14.4764596,101.69,101.63,8.8648]
[1769999684662,14.4764596,101.69,101.63,7.72022895]
[1769999684957,372.28,101.71,101.63,145.61902895]
[1769999685161,14.50298728,101.72,101.65,8.8629]
[1769999685356,14.50298728,101.72,101.61,137.9218]
[1769999685357,14.50298728,101.7,101.61,7.72022895]
[1769999686364,14.50840155,101.69,101.61,16.58612895]
[1769999686662,14.50840155,101.69,101.61,145.64552895]
[1769999686863,14.50840155,101.69,101.62,8.8656]
[1769999687364,14.50840155,101.69,101.61,145.64262895]
[1769999687564,14.50840155,101.69,101.61,154.50852895]
[1769999687768,14.46838916,101.67,101.61,16.58612895]
[1769999687961,14.46838916,101.67,101.61,8.8659]
[1769999689555,14.46383787,101.69,101.61,145.64572895]
[1769999689760,14.46383787,101.71,101.64,137.885]
[1769999690065,14.46383787,101.74,101.68,8.8604]
[1769999690367,14.46383787,101.74,101.65,145.59152895]
[1769999690667,14.46383787,101.72,101.65,7.72022895]
[1769999691663,14.46383787,101.72,101.65,145.59032895]
[1769999691858,14.41293282,101.75,101.67,7.72022895]
[1769999692065,14.41293282,101.75,101.67,16.58152895]
[1769999692066,23.26753282,101.75,101.67,16.58152895]
[1769999692265,14.41293282,101.74,101.67,16.58152895]
[1769999692465,14.41293282,101.74,101.67,145.56402895]
[1769999692663,14.41293282,101.74,101.68,8.8604]
[1769999693166,385.91293282,101.76,101.69,16.57972895]
[1769999693370,14.41293282,101.75,101.67,7.72022895]
[1769999694768,14.40502107,101.74,101.67,7.72022895]
[1769999695772,14.40502107,101.74,101.68,8.8604]
[1769999697373,14.40502107,101.74,101.67,16.58082895]
[1769999697762,14.40491972,101.73,101.67,16.58082895]
[1769999697968,14.40491972,101.73,101.67,8.8606]
[1769999699879,14.42185706,101.72,101.66,8.8623]
[1769999700674,14.42185706,101.72,101.67,8.8613]
[1769999701976,14.42185706,101.72,101.63,145.60722895]
[1769999702180,14.42403175,101.71,101.61,338.2163986]
[1769999702375,8.8593,101.7,101.63,8.8641]
[1769999702575,14.42403175,101.7,101.61,338.2163986]
[1769999702772,14.42403175,101.68,101.6,4.49107401]
[1769999702974,14.42403175,101.67,101.6,4.49107401]
[1769999703175,14.42403175,101.66,101.6,4.49107401]
[1769999703371,14.42403175,101.65,101.55,162.20106965]
[1769999703674,14.43428417,101.62,101.54,7.72022895]
[1769999703874,14.43428417,101.62,101.52,451.95642895]
[1769999704077,14.43428417,101.61,101.53,138.0344]
[1769999704278,14.43428417,101.61,101.53,8.8733]
[1769999704475,14.43428417,101.6,101.52,1.71297778]
[1769999704780,14.43428417,101.6,101.52,148.63517778]
[1769999704972,14.43428417,101.6,101.52,1.71297778]
[1769999705170,14.43428417,101.6,101.52,139.76117778]
[1769999705372,14.43428417,101.6,101.52,10.58707778]
[1769999705576,14.46126514,101.58,101.48,138.0908]
[1769999705777,14.46126514,101.56,101.48,145.81772895]
[1769999705980,14.46126514,101.56,101.49,146.9638]
[1769999706180,14.46126514,101.56,101.48,139.81115259]
[1769999706489,14.46126514,101.56,101.48,156.41288154]
[1769999706790,14.46126514,101.59,101.5,145.79562895]
[1769999706988,14.46126514,101.59,101.52,7.72022895]
[1769999707885,14.45684658,101.61,101.52,145.76712895]
[1769999708085,14.45684658,101.6,101.52,7.72022895]
[1769999708285,8.8678,101.6,101.51,8.8749]
[1769999708483,14.45684658,101.59,101.5,7.75970704]
[1769999708785,14.45684658,101.59,101.52,145.80760704]
[1769999708990,14.45684658,101.59,101.52,154.68180704]
[1769999709196,14.45684658,101.62,101.54,145.77970704]
[1769999709386,14.45684658,101.62,101.55,138.007]
[1769999709583,14.45684658,101.62,101.56,7.75970704]
[1769999709788,14.45684658,101.62,101.55,7.75970704]
[1769999709983,14.45684658,101.62,101.55,145.76740704]
[1769999710692,14.45382915,101.6,101.51,171.13256965]
[1769999710888,14.45382915,101.6,101.53,145.79460704]
[1769999711288,14.45382915,101.6,101.53,7.75970704]
[1769999711585,14.45382915,101.6,101.51,145.82120704]
[1769999711787,14.41817364,101.59,101.49,145.84810704]
[1769999711994,14.41817364,101.57,101.48,1.71365259]
[1769999712185,14.41817364,101.57,101.49,145.84800704]
[1769999712386,14.41817364,101.57,101.49,154.72480704]
[1769999712586,14.41817364,101.57,101.49,16.63650704]
[1769999713592,14.41240251,101.6,101.52,138.0464]
[1769999713781,14.41240251,101.6,101.51,7.75970704]
[1769999713982,14.41240251,101.59,101.5,138.0649]
[1769999714184,14.41240251,101.58,101.49,7.75970704]
[1769999714390,14.41240251,101.58,101.49,138.0886]
[1769999714585,14.41240251,101.58,101.5,138.0746]
[1769999714790,14.41240251,101.58,101.51,154.69640704]
[1769999714991,14.41240251,101.58,101.49,145.84830704]
[1769999715590,14.41240251,101.58,101.48,1.71365259]
[1769999715591,14.41607926,101.56,101.48,1.71365259]
[1769999715893,14.41607926,101.56,101.48,139.81545259]
[1769999716089,14.41607926,101.56,101.49,8.8769]
[1769999716392,14.41607926,101.56,101.48,1.71365259]
[1769999716597,14.41607926,101.56,101.48,10.59145259]
[1769999717901,14.41607926,101.56,101.49,16.63660704]
[1769999718095,14.40552071,101.59,101.5,138.0713]
[1769999718397,14.40552071,101.59,101.54,8.8723]
[1769999718592,14.40552071,101.62,101.55,145.76410704]
[1769999718787,14.40552071,101.65,101.55,145.76410704]
[1769999718992,14.40552071,101.63,101.56,8.8706]
[1769999719188,14.40552071,101.63,101.53,307.46]
[1769999719189,137.9147,101.62,101.53,307.46]
[1769999719396,14.40552071,101.61,101.53,315.21970704]
[1769999719598,14.40920489,101.6,101.53,7.75970704]
[1769999719797,14.40920489,101.6,101.51,145.81210704]
[1769999719990,383.18920489,101.63,101.54,138.0207]
[1769999720197,23.27600489,101.61,101.53,16.63260704]
[1769999720395,14.40920489,101.61,101.53,145.79400704]
[1769999720596,14.40920489,101.61,101.55,7.75970704]
[1769999720793,14.40920489,101.61,101.55,16.63130704]
[1769999721700,14.40920489,101.61,101.53,7.75970704]
[1769999721904,14.44575151,101.6,101.5,145.83280704]
[1769999722398,14.44575151,101.59,101.5,145.83280704]
[1769999722904,14.44575151,101.59,101.52,8.8743]
[1769999723506,14.44575151,101.57,101.48,147.56525963]
[1769999723699,14.44575151,101.57,101.48,9.47335963]
[1769999724697,14.46624042,101.56,101.48,1.71365259]
[1769999725099,14.46624042,101.55,101.48,1.71365259]
[1769999725306,14.46624042,101.55,101.48,8.8778]
[1769999725500,14.46624042,101.55,101.46,145.87720704]
[1769999725701,14.46624042,101.55,101.46,7.75970704]
[1769999726003,14.45974189,101.54,101.47,138.114]
[1769999726207,14.45974189,101.57,101.48,145.86260704]
[1769999726502,14.45974189,101.56,101.48,7.75970704]
[1769999726703,14.45974189,101.54,101.46,7.75970704]
[1769999727101,7.75970704,101.54,101.44,4.349e-05]
[1769999727305,138.2533,101.37,101.26,214.00482907]
[1769999727505,138.2363,101.39,101.27,83.37423611]
[1769999727506,138.2404,101.38,101.27,83.37423611]
[1769999727708,147.1419,101.37,101.27,85.09148259]
[1769999727904,8.8876,101.37,101.27,85.09148259]
[1769999728214,138.213,101.4,101.31,83.44458163]
[1769999728407,508.9382,101.44,101.34,75.68487459]
[1769999728714,147.157,101.36,101.28,75.68487459]
[1769999729006,138.3088,101.33,101.24,75.68487459]
[1769999729209,138.3215,101.32,101.24,75.68487459]
[1769999729406,138.3495,101.3,101.21,75.68487459]
[1769999729601,7.75970704,101.27,101.16,141.30668636]
[1769999729811,138.3632,101.29,101.19,83.44458163]
[1769999730006,138.3814,101.28,101.19,83.44458163]
[1769999730210,138.3614,101.3,101.21,83.44458163]
[1769999730407,518.33620704,101.33,101.23,75.68487459]
[1769999730606,510.5765,101.33,101.23,75.68487459]
[1769999730911,138.3534,101.3,101.19,214.18247459]
[1769999731111,138.3534,101.3,101.2,75.68487459]
[1769999731307,138.3633,101.29,101.2,75.68487459]
[1769999731512,138.3219,101.32,101.23,75.68487459]
[1769999731812,510.5677,101.33,101.24,75.68487459]
[1769999732010,510.5677,101.33,101.24,83.44458163]
[1769999732710,372.26,101.33,101.24,83.44458163]
[1769999732912,138.3218,101.32,101.24,75.68487459]
[1769999733313,138.3642,101.29,101.21,75.68487459]
[1769999733514,147.2431,101.3,101.21,75.68487459]
[1769999733712,372.26,101.33,101.23,75.68487459]
[1769999733910,138.3269,101.32,101.22,75.68487459]
[1769999734115,519.4612,101.33,101.23,83.44458163]
[1769999734316,510.5697,101.33,101.23,221.88838163]
[1769999734509,372.26,101.33,101.25,221.85418163]
[1769999734710,138.2716,101.36,101.27,7.75970704]
[1769999735118,138.2682,101.36,101.27,7.75970704]
[1769999735317,147.1534,101.37,101.27,7.75970704]
[1769999735514,138.2711,101.36,101.27,7.75970704]
[1769999735713,511.7509,101.38,101.27,221.83048163]
[1769999735920,138.2551,101.37,101.28,83.44458163]
[1769999736118,511.7509,101.38,101.28,83.44458163]
[1769999736421,138.284,101.35,101.28,75.68487459]
[1769999736611,138.2672,101.36,101.28,75.68487459]
[1769999736814,138.2875,101.35,101.26,7.75970704]
[1769999737016,138.3092,101.33,101.25,75.68487459]
[1769999737316,138.3091,101.33,101.25,75.68487459]
[1769999737523,146.04720704,101.35,101.24,7.75970704]
[1769999737524,146.04720704,101.35,101.24,222.01726206]